bitfinex/quotes_ETHUSD_20251119
["timestamp","ask_amount","ask_price","bid_price","bid_amount"]
[1763593486444,0.405504,2997.8,2996.7,0.5735]
[1763593486650,0.47,2997.6,2996.7,0.5735]
[1763593486850,0.47,2997.6,2996.3,0.405504]
[1763593486851,0.2656,2996.8,2996.3,0.405504]
[1763593487060,0.1874,2997.5,2996.5,0.113]
[1763593487265,0.405504,2997.4,2996.5,0.113]
[1763593487427,0.1874,2997.5,2996.5,0.5735]
[1763593487748,0.47,2997.4,2996.5,0.5735]
[1763593487960,0.47,2997.4,2996.5,0.113]
[1763593488161,0.47,2997.4,2996.6,0.113]
[1763593490353,0.2658,2996.7,2996.1,0.1821]
[1763593490515,0.0019,2996.5,2995.8,0.6426]
[1763593490720,0.0019,2996.5,2995.9,0.113]
[1763593490922,0.405504,2997.4,2996.4,0.454]
[1763593491117,0.1874,2997.5,2996.6,0.454]
[1763593491342,1.36735723,2999.0,2996.6,1.0145]
[1763593491343,0.6574,2997.9,2996.6,1.0145]
[1763593491544,0.6574,2997.9,2996.6,0.9145]
[1763593491757,0.6574,2997.9,2996.7,0.4605]
[1763593492976,0.1874,2997.9,2996.9,0.90699264]
[1763593493257,0.47,2997.8,2997.0,0.113]
[1763593494062,0.0792,2997.1,2996.4,1.3]
[1763593494371,0.47,2997.8,2995.5,4.41630157]
[1763593494372,0.405504,2997.7,2996.5,0.113]
[1763593494786,0.875504,2997.7,2996.5,0.113]
[1763593495291,0.405504,2997.5,2996.5,0.113]
[1763593495773,0.405504,2997.3,2996.5,0.113]
[1763593496071,0.405504,2997.3,2996.5,1.01999264]
[1763593496247,0.47,2997.3,2996.5,1.01999264]
[1763593497262,0.47,2997.3,2996.5,3.4502107]
[1763593498287,0.405504,2997.5,2996.6,0.4605]
[1763593498470,0.405504,2997.4,2996.6,0.4605]
[1763593498785,0.47,2997.5,2996.6,0.4605]
[1763593498979,0.47,2997.5,2996.7,0.03337004]
[1763593499295,0.47,2997.5,2996.6,3.79758813]
[1763593499455,0.47,2997.5,2996.6,4.59485751]
[1763593499973,0.47,2997.5,2996.7,0.4605]
[1763593501679,0.407504,2997.8,2996.8,0.03336892]
[1763593501884,0.002,2997.8,2997.7,0.454]
[1763593502201,0.002,2997.8,2997.7,0.567]
[1763593502509,0.002,2997.8,2997.7,1.0275]
[1763593503278,0.0812,2997.8,2997.2,0.1821]
[1763593503601,0.0812,2997.8,2997.3,0.113]
[1763593504126,0.466,2997.7,2997.0,4.70412048]
[1763593504283,0.0047,2997.4,2996.7,3.33692124]
[1763593504484,0.466,2997.7,2996.8,0.113]
[1763593504804,0.466,2997.7,2996.8,1.48049264]
[1763593505166,0.407504,2997.8,2996.9,0.4605]
[1763593505371,0.002,2997.8,2997.1,6.67311734]
[1763593505675,0.002,2997.8,2997.2,0.96241173]
[1763593506206,0.002,2997.8,2997.7,0.454]
[1763593506369,0.002,2997.8,2997.7,1.0275]
[1763593506904,0.186,2999.1,2997.8,1.00699264]
[1763593507069,0.186,2999.1,2998.7,0.454]
[1763593507271,0.186,2999.1,2998.8,0.113]
[1763593507667,0.186,2999.5,2998.8,0.5735]
[1763593508206,0.186,2999.5,2998.8,3.90815687]
[1763593508421,0.186,2999.5,2998.8,0.113]
[1763593508579,0.67,2999.5,2998.8,0.113]
[1763593508769,0.186,2999.5,2998.8,0.113]
[1763593508991,0.484,2999.4,2998.8,0.113]
[1763593509336,0.186,2999.6,2998.8,3.44762622]
[1763593509694,0.484,2999.5,2998.8,0.113]
[1763593510393,0.186,2999.6,2998.8,3.92511685]
[1763593510721,0.186,2999.6,2998.8,4.31762854]
[1763593511523,0.186,2999.6,2998.8,0.5905]
[1763593511735,0.67,2999.6,2998.8,0.113]
[1763593512100,0.484,2999.5,2998.8,0.113]
[1763593512753,0.2529,2998.9,2998.8,0.113]
[1763593513095,0.7339,2998.9,2998.8,0.113]
[1763593513296,0.7339,2998.9,2998.6,0.113]
[1763593513823,0.0048,2998.7,2998.6,0.113]
[1763593514341,0.4888,2998.7,2997.8,0.4775]
[1763593514541,0.4888,2998.7,2997.9,0.113]
[1763593515202,0.186,2999.6,2998.6,0.6858]
[1763593515397,0.67,2999.6,2998.7,0.113]
[1763593515623,0.67,2999.6,2998.1,3.33544578]
[1763593515827,0.484,2999.5,2998.2,0.113]
[1763593516043,0.405504,2999.4,2998.1,0.4775]
[1763593516254,0.405504,2999.4,2998.3,0.113]
[1763593516407,0.484,2999.3,2998.3,0.113]
[1763593516905,0.484,2999.3,2998.4,0.113]
[1763593518031,0.484,2999.3,2998.4,3.44808507]
[1763593518230,0.186,2999.6,2998.5,0.4775]
[1763593519418,0.186,2999.6,2998.6,6.66977922]
[1763593519632,0.253746,2998.7,2998.6,3.33488961]
[1763593519999,0.253746,2998.7,2998.6,3.83338961]
[1763593520435,0.253746,2998.7,2998.6,4.41088961]
[1763593520739,0.253746,2998.7,2998.6,5.521286]
[1763593524032,0.253746,2998.7,2998.6,0.4985]
[1763593524262,0.253746,2998.7,2998.6,1.089]
[1763593524461,0.715746,2998.7,2998.0,0.1873]
[1763593524759,0.715746,2998.7,2998.1,0.3003]
[1763593524760,0.0009,2998.6,2998.1,0.3003]
[1763593524946,0.253746,2998.7,2998.6,0.4985]
[1763593525259,0.253746,2998.7,2998.6,0.6115]
[1763593525426,0.253746,2998.7,2998.6,1.089]
[1763593525625,0.253746,2998.7,2998.6,8.84988225]
[1763593525835,0.253746,2998.7,2998.6,10.1683701]
[1763593526266,0.253746,2998.7,2998.6,6.4363701]
[1763593526472,0.253746,2998.7,2998.6,6.6493701]
[1763593526772,0.253746,2998.7,2998.6,10.1683701]
[1763593527261,0.002,2999.3,2999.0,0.1]
[1763593527423,0.002,2999.3,2999.2,0.6752]
[1763593527625,0.002,2999.3,2999.2,1.1712]
[1763593527861,0.002,2999.3,2999.2,4.50542245]
[1763593528557,0.002,2999.3,2999.2,0.6752]
[1763593528757,0.002,2999.3,2999.2,4.50542245]
[1763593528960,0.002,2999.3,2999.2,4.9672647]
[1763593529765,0.405504,3000.9,2999.2,4.9672647]
[1763593529926,1.19516197,3001.9,3000.9,0.4841]
[1763593529927,0.1874,3001.9,3000.9,0.4841]
[1763593530141,0.1874,3001.9,3001.0,0.114]
[1763593530374,0.1888,3002.4,3001.8,0.6752]
[1763593530678,0.1888,3002.9,3001.9,0.114]
[1763593531565,0.1888,3002.9,3001.8,0.2911]
[1763593531566,0.1888,3002.9,3002.0,0.114]
[1763593531781,0.1888,3002.9,3002.1,0.114]
[1763593531933,0.4876,3002.8,3001.8,0.1911]
[1763593532136,0.2479,3001.9,3001.1,0.4876]
[1763593532333,0.2479,3001.9,3001.2,0.114]
[1763593532561,0.7325,3001.9,3001.2,0.114]
[1763593533039,0.7325,3001.9,3001.0,0.496]
[1763593533040,0.2479,3001.9,3001.0,0.496]
[1763593533264,0.2479,3001.9,3001.0,1.30278455]
[1763593533450,0.2479,3001.9,3001.1,0.114]
[1763593533644,0.1888,3002.9,3001.1,0.114]
[1763593533645,0.405504,3002.8,3001.8,0.4841]
[1763593533885,0.1888,3002.9,3001.9,0.114]
[1763593534032,0.4876,3002.8,3001.8,0.4841]
[1763593534362,0.4876,3002.8,3001.9,0.114]
[1763593534567,0.4876,3002.8,3001.8,3.33131022]
[1763593534730,0.57843496,3003.5,3002.0,0.1]
[1763593534934,0.57843496,3003.5,3001.9,1.59409264]
[1763593535196,0.57843496,3003.5,3002.0,0.82567374]
[1763593535369,0.405504,3003.3,3002.0,0.93967374]
[1763593535570,0.405504,3003.3,3001.9,0.1911]
[1763593535731,0.405504,3003.1,3002.0,0.114]
[1763593535932,0.4876,3003.0,3002.0,0.114]
[1763593536358,0.4876,3003.0,3001.7,3.5225182]
[1763593536359,0.1888,3002.9,3002.1,0.114]
[1763593536574,0.405504,3002.8,3001.2,0.1911]
[1763593536776,0.4331,3001.8,3001.3,0.114]
[1763593536978,0.405504,3002.6,3001.3,0.114]
[1763593537178,0.405504,3002.6,3001.3,0.61]
[1763593537375,0.4876,3002.5,3001.3,0.61]
[1763593537962,0.4876,3002.5,3001.3,3.94188823]
[1763593538135,0.4876,3002.5,3001.3,4.40344668]
[1763593538335,0.4876,3002.5,3001.4,0.90699264]
[1763593538844,0.1875,3002.7,3001.5,0.4991]
[1763593539077,0.4596,3002.5,3001.5,0.4991]
[1763593539296,0.4596,3002.5,3001.5,1.36364288]
[1763593539595,0.4596,3002.5,3001.3,1.48255109]
[1763593539596,0.4596,3002.5,3001.3,3.90744699]
[1763593539793,0.4596,3002.5,3001.3,4.40654699]
[1763593539998,0.4596,3002.5,3001.3,7.7384365]
[1763593540690,0.4596,3002.5,3001.3,4.40654699]
[1763593540896,0.4596,3002.5,3000.7,0.1911]
[1763593540897,0.2761,3001.4,3000.7,0.1911]
[1763593541065,0.0019,3001.3,3000.3,0.6885]
[1763593541406,0.867004,3001.3,3000.1,0.4596]
[1763593541692,0.2775,3000.2,3000.1,0.4596]
[1763593541897,0.405504,3001.1,3000.1,0.5736]
[1763593542269,0.405504,3000.9,3000.1,0.5736]
[1763593542615,0.2785,3000.2,3000.1,0.114]
[1763593542899,0.405504,3000.7,3000.1,0.114]
[1763593543411,0.4596,3000.6,3000.1,0.114]
[1763593544264,0.0895,3000.2,3000.1,0.114]
[1763593544693,0.4596,3000.6,3000.1,0.114]
[1763593546594,0.0895,3000.2,3000.1,0.114]
[1763593548615,0.0895,3000.2,2999.0,0.6885]
[1763593548616,0.405504,3000.1,2999.0,0.6885]
[1763593548819,0.0046,2999.6,2999.1,0.114]
[1763593548970,0.4596,3000.0,2999.1,0.114]
[1763593549173,0.4596,3000.5,2999.2,0.4991]
[1763593550272,0.4596,3000.5,2999.3,6.66822258]
[1763593550431,0.6486,3000.8,2999.4,0.1]
[1763593550580,0.4596,3000.7,2999.5,0.67682226]
[1763593550997,0.4596,3000.7,2999.6,0.6131]
[1763593551234,0.4596,3000.7,2999.7,0.114]
[1763593551579,0.4596,3000.7,2999.7,0.4991]
[1763593551778,0.4596,3000.7,2999.8,0.114]
[1763593552319,0.4596,3001.1,2999.9,6.66688888]
[1763593552484,0.4596,3001.1,3000.0,0.72799889]
[1763593552814,0.1866,3001.4,3000.3,0.1]
[1763593553015,0.4596,3002.2,3001.0,0.4927]
[1763593553216,0.4596,3002.2,3001.3,0.6821]
[1763593553519,0.4596,3002.2,3000.5,0.90699264]
[1763593553729,0.1856,3001.4,3000.6,0.93981048]
[1763593553927,0.4596,3002.2,3000.6,1.43891048]
[1763593554234,0.4596,3002.1,3000.7,0.6131]
[1763593554384,0.4596,3002.1,3000.8,3.33244468]
[1763593554776,0.405504,3002.0,3000.8,3.83154468]
[1763593554982,0.4596,3002.1,3000.9,0.72780665]
[1763593555186,0.4596,3002.1,3000.9,0.6131]
[1763593555390,0.4596,3002.1,3001.0,0.4991]
[1763593555803,0.4596,3002.1,3000.7,7.16418964]
[1763593555999,0.4596,3002.1,3000.8,0.114]
[1763593556192,0.4596,3002.1,3000.8,0.92440001]
[1763593556890,0.405504,3002.0,3000.9,6.66466726]
[1763593557323,0.1866,3001.9,3000.9,7.16376726]
[1763593558734,0.4596,3001.8,3000.8,0.92440001]
[1763593558922,0.405504,3001.7,3000.9,0.114]
[1763593559422,0.405504,3001.5,3000.9,0.114]
[1763593559813,0.405504,3001.5,3000.5,8.0716202]
[1763593559814,0.405504,3001.5,3001.0,0.114]
[1763593560202,0.4596,3001.4,3001.0,0.114]
[1763593560555,0.405504,3001.0,3000.0,3.33323078]
[1763593560847,0.405504,3001.0,2999.8,0.4991]
[1763593560848,0.405504,3001.0,3000.1,0.3034]
[1763593561003,0.405504,3000.8,3000.2,0.114]
[1763593561210,0.6486,3000.9,3000.3,0.114]
[1763593561512,0.4596,3001.4,3000.3,0.114]
[1763593561835,0.405504,3001.3,3000.3,0.114]
[1763593562138,0.4596,3001.3,3000.3,0.114]
[1763593562431,0.405504,3001.2,3000.3,0.114]
[1763593562835,0.4596,3001.1,3000.3,0.114]
[1763593563155,0.4596,3001.8,3000.4,0.14732888]
[1763593563438,0.4596,3001.8,3000.4,7.46511215]
[1763593563640,0.4596,3001.8,3000.5,0.4991]
[1763593564136,0.405504,3001.7,3000.5,0.4991]
[1763593564513,0.74884875,3002.6,3000.5,0.4991]
[1763593564514,0.405504,3001.5,3000.6,0.114]
[1763593564938,0.89398,3003.2,3001.5,0.1]
[1763593565103,1.19716197,3003.4,3001.5,0.1]
[1763593565104,0.002,3003.4,3002.7,7.35111215]
[1763593565446,0.002,3003.4,3003.3,0.4927]
[1763593565651,0.002,3003.4,3003.3,1.39969264]
[1763593565941,0.002,3003.4,3003.3,2.46016789]
[1763593566146,0.17416524,3005.5,3003.4,0.4991]
[1763593566447,1.31019408,3007.2,3003.4,0.4991]
[1763593566448,0.198,3006.9,3005.4,1.09639264]
[1763593566656,0.198,3006.9,3006.1,0.1894]
[1763593566818,0.198,3006.9,3006.2,0.115]
[1763593566819,0.4596,3006.8,3006.2,0.115]
[1763593567020,0.4596,3006.8,3005.6,4.23410449]
[1763593567212,0.4596,3006.8,3005.7,0.115]
[1763593567404,0.4596,3006.8,3005.6,0.90699264]
[1763593567617,0.4596,3006.8,3005.4,0.1894]
[1763593567618,0.49334403,3006.8,3005.2,0.1894]
[1763593568134,0.1965,3005.3,3004.1,0.1848]
[1763593568338,0.43924803,3005.2,3004.1,0.115]
[1763593568517,0.91044803,3005.2,3004.1,0.115]
[1763593568731,0.91044803,3005.2,3004.2,0.115]
[1763593569069,0.405504,3005.0,3003.5,0.4745]
[1763593569247,0.405504,3005.0,3003.6,0.115]
[1763593569448,0.405504,3004.8,3003.4,0.1848]
[1763593569609,0.405504,3004.8,3003.1,0.1894]
[1763593569610,0.405504,3004.6,3003.5,0.115]
[1763593570142,0.4712,3004.5,3003.5,0.115]
[1763593570567,0.405504,3004.4,3003.2,7.35111215]
[1763593570770,0.405504,3004.4,3003.1,0.6639]
[1763593570927,0.1965,3005.3,3003.3,8.0292755]
[1763593571276,0.405504,3004.8,3003.4,0.4745]
[1763593571567,0.405504,3004.8,3003.5,0.115]
[1763593571853,0.1965,3005.3,3003.3,7.9142755]
[1763593571854,0.405504,3004.6,3003.6,0.4745]
[1763593572060,0.405504,3004.6,3003.7,0.115]
[1763593572423,0.405504,3004.4,3003.8,0.115]
[1763593572623,0.405504,3004.4,3003.0,0.1848]
[1763593572624,0.1965,3003.9,3003.0,0.1848]
[1763593572860,0.1965,3003.9,3003.1,0.2998]
[1763593573046,0.1965,3003.9,3003.1,3.62967052]
[1763593573258,0.1965,3004.2,3003.2,0.88491705]
[1763593573425,0.405504,3004.1,3003.1,6.78132671]
[1763593573629,0.876704,3004.1,3003.2,0.115]
[1763593573924,0.876704,3004.1,3003.1,6.78132671]
[1763593574170,0.876704,3004.1,3002.7,3.98954473]
[1763593574171,0.405504,3003.9,3003.2,0.115]
[1763593574476,0.405504,3003.9,3002.7,0.6593]
[1763593574477,0.405504,3003.9,3002.7,0.1848]
[1763593574766,0.1965,3004.2,3001.6,0.4745]
[1763593574767,0.405504,3002.7,3001.6,0.4745]
[1763593574934,0.1351,3002.8,3001.8,6.59652671]
[1763593575134,0.6063,3002.8,3001.8,6.59652671]
[1763593575454,0.405504,3002.7,3001.8,6.59652671]
[1763593575657,0.876704,3002.7,3001.9,0.115]
[1763593576460,0.405504,3002.7,3001.9,0.78615267]
[1763593576674,0.4712,3003.1,3001.9,0.78615267]
[1763593576675,0.405504,3003.0,3001.9,0.78615267]
[1763593576990,0.405504,3003.1,3002.3,6.59652671]
[1763593577144,0.405504,3003.1,3002.7,0.001]
[1763593577565,0.4712,3003.9,3002.7,0.001]
[1763593577771,0.1965,3004.2,3003.3,6.59652671]
[1763593578079,0.4712,3004.1,3003.4,0.115]
[1763593578587,0.4712,3004.5,3003.4,1.27080267]
[1763593579177,0.4712,3004.5,3003.5,6.65889794]
[1763593579539,0.4712,3004.5,3003.4,1.27080267]
[1763593579756,0.4712,3004.5,3003.4,4.60034093]
[1763593579961,0.405504,3004.4,3003.5,0.115]
[1763593580429,0.4712,3004.7,3003.5,3.44444897]
[1763593580686,0.1965,3006.1,3003.9,0.90699264]
[1763593580979,0.405504,3004.9,3003.8,6.59652671]
[1763593581179,0.6063,3005.0,3003.9,0.14829005]
[1763593581381,0.1965,3006.1,3004.3,6.59652671]
[1763593581382,0.4712,3005.4,3004.3,6.59652671]
[1763593581586,0.4712,3005.9,3004.9,6.59652671]
[1763593581788,0.1965,3006.4,3005.4,6.59652671]
[1763593581981,0.1965,3006.4,3005.4,7.97801935]
[1763593582187,0.1965,3006.4,3005.4,8.79430128]
[1763593582492,0.1965,3006.4,3005.4,7.07102671]
[1763593583475,0.1965,3007.0,3005.4,10.39837082]
[1763593583674,0.1965,3006.6,3005.4,10.51337082]
[1763593584054,0.4712,3006.5,3005.4,3.32734411]
[1763593584280,0.6677,3007.0,3005.4,3.80184411]
[1763593584609,0.405504,3006.9,3005.4,6.21489974]
[1763593584769,0.03374403,3006.8,3005.4,1.39106299]
[1763593584974,0.03374403,3006.8,3004.9,0.4745]
[1763593584975,0.4712,3005.8,3004.9,0.90699264]
[1763593585201,0.4712,3005.8,3005.3,0.115]
[1763593585417,0.4712,3005.8,3004.4,3.9877516]
[1763593585418,0.405504,3005.7,3004.4,3.9877516]
[1763593585706,0.405504,3005.7,3004.5,0.51377516]
[1763593586087,0.405504,3005.7,3004.5,1.00957516]
[1763593586593,0.405504,3005.7,3004.5,7.60610187]
[1763593587495,0.4731,3005.5,3004.6,0.115]
[1763593587673,0.4731,3005.5,3004.7,0.115]
[1763593587879,0.4731,3005.5,3004.3,0.90699264]
[1763593587880,0.002,3005.5,3004.8,0.115]
[1763593588283,0.002,3005.5,3004.6,6.59652671]
[1763593588581,0.002,3005.5,3004.9,0.115]
[1763593588582,0.4731,3005.5,3004.9,0.115]
[1763593588780,0.4731,3005.5,3005.0,0.115]
[1763593589606,0.405504,3005.4,3003.8,0.4958]
[1763593589913,0.405504,3005.4,3003.9,6.71152671]
[1763593590099,0.405504,3005.2,3003.9,6.71152671]
[1763593590437,0.405504,3005.2,3004.0,0.90699264]
[1763593590617,0.405504,3005.0,3004.1,0.115]
[1763593591120,0.4711,3005.1,3004.1,0.3053]
[1763593591286,0.002,3005.5,3004.4,6.59652671]
[1763593591474,0.002,3005.5,3004.6,3.32823004]
[1763593593715,0.002,3005.5,3004.6,6.65646008]
[1763593593912,0.002,3005.5,3004.6,3.32823004]
[1763593594280,0.4711,3005.4,3004.7,0.115]
[1763593594612,0.4711,3005.4,3004.1,0.1903]
[1763593594613,0.405504,3005.3,3004.1,0.1903]
[1763593594810,0.405504,3005.3,3004.2,0.115]
[1763593594989,0.405504,3005.1,3004.2,0.115]
[1763593595387,0.4711,3005.1,3004.2,0.115]
[1763593595618,0.002,3005.5,3004.2,0.115]
[1763593595619,0.002,3005.5,3004.9,6.59652671]
[1763593595842,0.002,3005.5,3005.0,0.115]
[1763593596749,0.4731,3005.5,3005.0,0.115]
[1763593597263,0.002,3005.5,3005.0,0.115]
[1763593597618,0.4711,3005.4,3005.0,0.115]
[1763593599113,0.4637,3005.1,3005.0,0.115]
[1763593599327,0.4637,3005.1,3004.9,0.115]
[1763593600048,0.410104,3005.0,3004.1,3.51905562]
[1763593600259,0.0046,3005.0,3004.4,0.115]
[1763593600421,0.407504,3005.5,3004.5,6.59652671]
[1763593600622,0.4992,3005.4,3004.5,6.59652671]
[1763593601213,0.405504,3005.3,3004.5,6.59652671]
[1763593601417,0.4992,3005.2,3004.5,6.59652671]
[1763593602050,0.4992,3005.2,3004.6,0.115]
[1763593603256,0.4992,3005.2,3003.5,0.001]
[1763593603257,1.041204,3004.7,3003.5,0.001]
[1763593603453,0.410004,3004.6,3003.6,0.115]
[1763593603642,0.5888,3003.7,3003.6,0.115]
[1763593604059,0.4992,3004.4,3003.6,0.115]
[1763593604258,0.405504,3004.3,3003.6,0.115]
[1763593604459,0.5932,3003.7,3003.6,0.115]
[1763593604825,0.4992,3004.4,3003.6,0.115]
[1763593605024,0.405504,3004.3,3003.6,0.115]
[1763593605457,0.405504,3004.2,3003.6,0.115]
[1763593605649,0.405504,3004.2,3003.7,0.03329227]
[1763593605844,0.405504,3004.2,3003.6,0.115]
[1763593606049,0.4992,3004.3,3003.6,0.115]
[1763593607073,0.405504,3004.6,3003.6,8.27374999]
[1763593607256,0.4992,3004.5,3003.9,6.59652671]
[1763593607429,0.4992,3004.5,3004.0,0.115]
[1763593607630,0.4056,3004.1,3003.5,0.001]
[1763593607862,0.4992,3004.5,3003.6,0.115]
[1763593607863,0.0041,3004.0,3003.6,0.115]
[1763593608066,0.4992,3004.5,3003.7,0.03329227]
[1763593608241,0.4992,3004.5,3003.7,1.05710571]
[1763593608742,0.405504,3004.4,3003.5,0.001]
[1763593608946,0.405504,3004.4,3003.6,0.115]
[1763593609145,0.405504,3004.2,3003.6,0.115]
[1763593609359,0.4992,3004.1,3003.6,0.115]
[1763593611684,0.5932,3003.7,3003.6,0.115]
[1763593611888,0.1876,3003.7,3003.6,0.115]
[1763593612088,0.5932,3003.7,3003.6,0.115]
[1763593612766,0.5932,3003.7,3003.5,0.116]
[1763593613649,0.005,3003.6,3003.5,0.116]
[1763593614336,0.5042,3003.6,3003.5,0.116]
[1763593614447,0.5042,3003.6,3003.5,0.001]
[1763593614448,0.909704,3003.6,3003.5,0.001]
[1763593614788,0.405504,3003.5,3003.2,0.001]
[1763593614985,0.806204,3003.3,3003.2,0.001]
[1763593615351,1.305404,3003.3,3003.2,0.001]
[1763593616098,0.806204,3003.3,3003.2,0.001]
[1763593616298,0.4992,3003.6,3003.2,0.001]
[1763593616463,0.4056,3003.3,3003.2,0.001]
[1763593616989,0.9039,3003.3,3003.2,0.001]
[1763593618313,1.309404,3003.3,3003.2,0.001]
[1763593618609,1.309404,3003.3,3002.7,0.001]
[1763593618610,0.405504,3003.2,3002.7,0.001]
[1763593618794,0.005,3002.8,3002.7,0.001]
[1763593619307,0.405504,3002.7,3001.4,0.115]
[1763593619492,0.3291,3001.5,3001.4,0.115]
[1763593619693,0.5167,3001.5,3001.4,0.115]
[1763593620279,0.5167,3001.5,3000.8,7.01425991]
[1763593620280,1.0159,3001.5,3000.8,7.01425991]
[1763593620476,0.1876,3002.5,3001.4,0.642]
[1763593620697,0.1876,3002.5,3001.8,7.01425991]
[1763593621020,0.6868,3004.1,3002.4,0.551]
[1763593621215,0.6868,3004.1,3003.4,7.01425991]
[1763593621216,0.1876,3004.1,3003.4,7.01425991]
[1763593621515,0.4992,3004.0,3003.4,7.12925991]
[1763593621848,0.542,3003.5,3003.3,0.115]
[1763593622022,0.4992,3004.0,3003.3,0.115]
[1763593622525,0.1876,3004.1,3003.4,7.01425991]
[1763593622725,0.1876,3004.1,3003.4,8.06014992]
[1763593622927,0.1876,3004.1,3003.4,1.04589001]
[1763593623951,0.1876,3004.7,3004.0,0.4546]
[1763593624259,0.1876,3004.7,3004.1,0.115]
[1763593624537,0.6868,3005.1,3004.3,6.59399989]
[1763593624538,0.1876,3005.1,3004.3,6.59399989]
[1763593624750,0.002,3005.5,3005.0,0.4546]
[1763593624898,0.002,3005.5,3005.1,0.115]
[1763593625229,0.4992,3005.4,3004.8,6.59399989]
[1763593625393,0.4992,3005.4,3004.9,0.115]
[1763593625604,0.002,3005.5,3004.9,0.115]
[1763593625949,0.002,3005.5,3004.9,0.6109]
[1763593626132,0.002,3005.5,3005.0,0.115]
[1763593626438,0.002,3005.5,3005.0,0.78589999]
[1763593626639,0.002,3005.5,3004.0,3.51624574]
[1763593626640,0.3544,3005.1,3004.3,6.59399989]
[1763593626860,0.0035,3004.9,3004.0,0.1874]
[1763593627138,0.0035,3004.9,3004.1,0.115]
[1763593627358,0.405504,3004.7,3004.1,0.115]
[1763593627808,0.4706,3004.6,3004.1,0.115]
[1763593628157,0.405504,3004.5,3004.1,0.115]
[1763593628437,0.405504,3004.5,3003.4,1.04589001]
[1763593628641,0.197,3003.5,3003.0,6.59399989]
[1763593628843,0.405504,3004.3,3003.4,0.115]
[1763593629048,0.405504,3004.2,3003.4,0.3032]
[1763593629249,0.405504,3004.2,3003.4,0.115]
[1763593629848,0.89398,3006.1,3004.2,0.1]
[1763593630145,2.86575932,3007.0,3004.1,6.78219989]
[1763593630146,0.6676,3007.6,3005.7,1.00699264]
[1763593630347,0.197,3007.9,3007.1,6.59399989]
[1763593630519,0.197,3007.9,3007.2,0.115]
[1763593630707,0.197,3007.9,3007.2,1.02199264]
[1763593630907,0.197,3008.4,3007.3,0.77949925]
[1763593631112,0.197,3007.9,3007.3,0.77949925]
[1763593631541,0.4706,3008.3,3007.3,0.77949925]
[1763593632042,0.50434403,3008.3,3006.6,0.69082002]
[1763593632245,0.50434403,3008.3,3006.6,6.59399989]
[1763593632411,0.50434403,3008.3,3004.4,3.519]
[1763593632412,0.405504,3008.2,3005.6,6.77299989]
[1763593632612,0.405504,3008.2,3005.7,0.115]
[1763593632613,0.405504,3008.0,3005.7,0.115]
[1763593632812,0.405504,3008.0,3005.8,0.80379999]
[1763593632813,0.002,3005.9,3005.8,0.80379999]
[1763593633012,0.002,3005.9,3005.8,0.115]
[1763593633224,0.002,3005.9,3005.8,7.90148934]
[1763593633463,0.002,3005.9,3005.8,8.92348198]
[1763593633624,0.002,3005.9,3005.8,1.02199264]
[1763593634227,0.002,3005.9,3005.8,0.90699264]
[1763593634439,0.002,3005.9,3005.8,1.38919264]
[1763593634637,0.002,3005.9,3005.8,5.20561516]
[1763593634840,0.002,3005.9,3005.8,1.51151384]
[1763593635132,0.002,3005.9,3003.0,5.32921554]
[1763593635133,0.4726,3005.9,3004.8,0.115]
[1763593636444,0.90699264,3007.6,3005.8,0.179]
[1763593636641,3.33717933,3010.4,3010.3,0.14999999]
[1763593636897,0.0069499,3011.5,3010.4,0.90699264]
[1763593637033,0.4706,3011.4,3010.8,1.14519618]
[1763593637227,0.4706,3011.4,3010.9,1.132018]
[1763593637431,0.4706,3011.4,3010.6,0.85889713]
[1763593637664,0.4706,3011.4,3010.3,0.85889713]
[1763593638071,1.3386695,3011.3,3009.6,0.85889713]
[1763593638269,2.43790733,3011.3,3009.2,0.85889713]
[1763593638472,0.4706,3011.2,3008.9,0.85889713]
[1763593638628,1.29126419,3011.2,3009.0,1.99091513]
[1763593638968,0.82066419,3011.1,3009.1,1.132018]
[1763593639137,1.29126419,3011.1,3009.2,1.132018]
[1763593639330,0.4706,3011.0,3009.3,1.132018]
[1763593639528,0.4706,3011.0,3009.4,1.132018]
[1763593639757,0.4706,3011.0,3009.5,1.132018]
[1763593640065,0.4706,3011.0,3008.6,1.26419618]
[1763593640066,0.4706,3011.0,3009.6,1.132018]
[1763593640272,0.4706,3011.0,3008.9,0.85889713]
[1763593640569,0.4706,3011.0,3009.0,1.132018]
[1763593640783,0.4706,3011.0,3008.7,1.14519618]
[1763593640784,7.90148934,3010.1,3008.7,0.85889713]
[1763593641089,0.79014893,3010.0,3008.8,1.132018]
[1763593641388,0.4706,3010.9,3008.9,1.132018]
[1763593641688,0.4706,3010.9,3009.5,0.85889713]
[1763593641852,0.4706,3010.9,3009.9,0.85889713]
[1763593642048,0.4706,3010.8,3010.4,0.85889713]
[1763593642361,0.4706,3010.8,3010.5,0.68132585]
[1763593642567,0.4706,3010.8,3010.6,0.68132585]
[1763593642763,0.4706,3010.8,3010.2,0.85889713]
[1763593643051,0.4706,3010.8,3009.7,0.85889713]
[1763593643250,0.4706,3010.8,3009.8,1.53981655]
[1763593643455,0.4706,3010.8,3009.9,0.68091942]
[1763593643456,0.90699264,3010.4,3009.9,0.68091942]
[1763593643684,0.8808482,3010.3,3009.2,0.85889713]